bitfinex/quotes_BTCUSD_20240703
["timestamp","ask_amount","ask_price","bid_price","bid_amount"]
[1720001817514,0.1602988,60287.0,60277.0,0.22535152]
[1720001817731,2.7772458,60287.0,60277.0,0.22535152]
[1720001817979,0.1602988,60285.0,60267.0,0.22535152]
[1720001818205,0.1602988,60282.0,60266.0,0.01902578]
[1720001818441,3.861271,60281.0,60266.0,0.01902578]
[1720001818710,2.1395838,60280.0,60267.0,0.22535152]
[1720001818918,1.340916,60279.0,60275.0,0.08015582]
[1720001819158,0.1602988,60278.0,60271.0,0.22617488]
[1720001819389,2.235266,60277.0,60271.0,0.00082336]
[1720001819632,0.1602988,60276.0,60271.0,0.00082336]
[1720001819884,3.861271,60275.0,60271.0,0.00082336]
[1720001820121,4.0215698,60275.0,60271.0,0.00082336]
[1720001820610,4.0215698,60275.0,60274.0,0.13689608]
[1720001821052,0.1602988,60275.0,60274.0,0.13689608]
[1720001821324,4.03381936,60275.0,60274.0,0.13689608]
[1720001821556,4.0215698,60275.0,60274.0,0.13689608]
[1720001821783,4.03512315,60275.0,60274.0,0.13689608]
[1720001822007,4.0215698,60275.0,60274.0,0.13689608]
[1720001822232,4.0351213,60275.0,60274.0,0.13689608]
[1720001822459,3.8122938,60275.0,60274.0,0.13689608]
[1720001822705,1.77783102,60345.0,60274.0,0.15071802]
[1720001822706,0.15979546,60297.0,60274.0,0.15071802]
[1720001822934,0.08015582,60346.0,60289.0,0.08015582]
[1720001822935,1.546766,60296.0,60289.0,0.08015582]
[1720001823188,3.030544,60307.0,60289.0,0.08015582]
[1720001823415,0.01398692,60306.0,60289.0,0.08015582]
[1720001823664,0.01398692,60306.0,60274.0,0.15071802]
[1720001823665,3.9134625,60305.0,60274.0,0.13689608]
[1720001824124,3.92749601,60304.0,60274.0,0.13689608]
[1720001824375,3.92749601,60303.0,60274.0,0.13689608]
[1720001824621,3.87847707,60302.0,60281.0,0.22535152]
[1720001824833,2.20401007,60301.0,60286.0,0.22535152]
[1720001825054,0.15979546,60308.0,60286.0,0.22535152]
[1720001825055,2.56463807,60300.0,60286.0,0.22535152]
[1720001825297,0.08015582,60320.0,60278.0,0.08015582]
[1720001825298,2.53343045,60299.0,60278.0,0.08015582]
[1720001825524,0.15979546,60315.0,60265.0,0.08015582]
[1720001825525,0.1602988,60295.0,60265.0,0.08015582]
[1720001825737,0.08015582,60313.0,60279.0,0.08015582]
[1720001825738,0.1602988,60293.0,60279.0,0.08015582]
[1720001825954,3.18449637,60292.0,60256.0,0.08015582]
[1720001826164,3.87859792,60291.0,60271.0,0.08015582]
[1720001826371,3.87859792,60290.0,60271.0,0.08015582]
[1720001826603,0.1602988,60293.0,60271.0,0.08015582]
[1720001826604,3.82102592,60289.0,60271.0,0.08015582]
[1720001826818,1.91240292,60288.0,60280.0,0.08015582]
[1720001827030,1.2715328,60287.0,60271.0,0.08015582]
[1720001827243,3.145735,60286.0,60271.0,0.08015582]
[1720001827460,2.8248428,60285.0,60271.0,0.08015582]
[1720001827676,0.433669,60284.0,60271.0,0.08015582]
[1720001827916,0.48093494,60309.0,60278.0,0.08015582]
[1720001827917,0.479524,60283.0,60278.0,0.08015582]
[1720001828126,0.48093494,60293.0,60278.0,0.08015582]
[1720001828336,0.48105403,60292.0,60285.0,0.08015582]
[1720001828543,1.537871,60291.0,60285.0,0.08015582]
[1720001828958,0.249997,60290.0,60285.0,0.08015582]
[1720001829179,3.838951,60308.0,60285.0,0.08015582]
[1720001829391,3.73127948,60307.0,60285.0,0.08015582]
[1720001829607,3.78261687,60306.0,60285.0,0.08015582]
[1720001829819,4.0215698,60305.0,60285.0,0.08015582]
[1720001830033,0.1602988,60302.0,60271.0,0.08015582]
[1720001830255,0.1602988,60298.0,60278.0,0.08015582]
[1720001830528,3.88065853,60297.0,60278.0,0.08015582]
[1720001830739,1.88408833,60296.0,60285.0,0.08015582]
[1720001830957,1.47954053,60295.0,60292.0,0.08015582]
[1720001831167,0.533997,60294.0,60285.0,0.08015582]
[1720001831380,0.48093494,60306.0,60278.0,0.08015582]
[1720001831381,3.380614,60305.0,60286.0,0.08015582]
[1720001831586,1.88208908,60304.0,60294.0,0.08015582]
[1720001831800,1.74830028,60303.0,60286.0,0.08015582]
[1720001832019,1.16808128,60302.0,60286.0,0.08015582]
[1720001832248,1.16808128,60302.0,60262.0,0.07330858]
[1720001832249,0.08015582,60287.0,60262.0,0.07330858]
[1720001832458,3.93720942,60286.0,60250.0,0.0097737]
[1720001832673,2.39104042,60285.0,60250.0,0.0082221]
[1720001832887,0.08015582,60283.0,60250.0,0.0082221]
[1720001833121,0.1602988,60273.0,60254.0,0.08015582]
[1720001833336,0.1602988,60270.0,60250.0,0.0082221]
[1720001833548,3.94001371,60269.0,60250.0,0.0082221]
[1720001833771,4.10031251,60268.0,60250.0,0.0082221]
[1720001833981,3.94001371,60267.0,60251.0,0.08015582]
[1720001834193,3.70063066,60266.0,60251.0,0.08015582]
[1720001834736,3.70063066,60266.0,60246.0,0.0182221]
[1720001834737,1.66153557,60265.0,60259.0,0.08015582]
[1720001834959,0.48093494,60290.0,60259.0,0.08015582]
[1720001835167,0.48093494,60273.0,60271.0,0.08015582]
[1720001835378,0.1602988,60287.0,60260.0,0.1602988]
[1720001835379,1.118697,60272.0,60260.0,0.1602988]
[1720001835589,2.975399,60271.0,60261.0,0.08015582]
[1720001835798,1.93758,60270.0,60261.0,0.08015582]
[1720001836011,0.1602988,60269.0,60252.0,0.08015582]
[1720001836440,3.861271,60268.0,60252.0,0.08015582]
[1720001836649,0.1602988,60267.0,60252.0,0.08015582]
[1720001836826,3.652248,60266.0,60252.0,0.08015582]
[1720001837100,2.6345748,60265.0,60252.0,0.08015582]
[1720001837307,2.20253,60264.0,60252.0,0.08015582]
[1720001837520,0.1602988,60263.0,60246.0,0.0182221]
[1720001837727,3.708087,60262.0,60248.0,0.08015582]
[1720001837943,1.079715,60261.0,60248.0,0.08015582]
[1720001838155,1.079715,60261.0,60246.0,0.0182221]
[1720001838156,2.22612,60260.0,60246.0,0.0182221]
[1720001838384,2.184668,60260.0,60249.0,0.08015582]
[1720001838590,2.112142,60260.0,60249.0,0.08015582]
[1720001838815,1.213059,60259.0,60249.0,0.08015582]
[1720001839025,0.344191,60258.0,60249.0,0.08015582]
[1720001839238,3.693265,60267.0,60249.0,0.08015582]
[1720001839465,0.1602988,60257.0,60246.0,0.0182221]
[1720001839677,2.350102,60256.0,60246.0,0.0182221]
[1720001839893,1.9581798,60255.0,60249.0,0.08015582]
[1720001840106,1.411649,60254.0,60249.0,0.08015582]
[1720001840316,1.5022258,60254.0,60249.0,0.08015582]
[1720001840549,1.3792498,60253.0,60246.0,0.0182221]
[1720001840772,2.153796,60252.0,60246.0,0.0182221]
[1720001840983,1.8156818,60251.0,60246.0,0.0182221]
[1720001841191,0.633718,60250.0,60247.0,0.08015582]
[1720001841601,0.15979546,60276.0,60247.0,0.08015582]
[1720001841806,0.15979546,60276.0,60246.0,0.0182221]
[1720001841807,0.48093494,60248.0,60246.0,0.0182221]
[1720001842026,1.4824618,60247.0,60246.0,0.0182221]
[1720001842252,0.1602988,60247.0,60246.0,0.0182221]
[1720001842461,0.08015582,60272.0,60246.0,0.0182221]
[1720001842676,0.48093494,60274.0,60247.0,0.08015582]
[1720001842677,4.03437252,60271.0,60247.0,0.08015582]
[1720001842895,0.1602988,60257.0,60247.0,0.08015582]
[1720001843127,0.1602988,60257.0,60246.0,0.0182221]
[1720001843128,3.37385972,60256.0,60246.0,0.0182221]
[1720001843337,3.16241852,60255.0,60246.0,0.0182221]
[1720001843535,0.1602988,60250.0,60246.0,0.0182221]
[1720001843738,1.048505,60249.0,60246.0,0.0182221]
[1720001843944,0.1602988,60248.0,60246.0,0.0182221]
[1720001844147,0.08015582,60273.0,60246.0,0.0182221]
[1720001844148,3.5585138,60247.0,60246.0,0.0182221]
[1720001844365,3.42207079,60247.0,60246.0,0.0182221]
[1720001844564,3.44991482,60247.0,60246.0,0.0182221]
[1720001844795,3.42211079,60247.0,60246.0,0.0182221]
[1720001844951,3.44995928,60247.0,60246.0,0.0182221]
[1720001845134,3.3567528,60247.0,60246.0,0.0182221]
[1720001845343,3.17092116,60247.0,60246.0,0.0182221]
[1720001845743,2.93735616,60247.0,60246.0,0.0182221]
[1720001847580,1.65705716,60247.0,60246.0,0.0182221]
[1720001847792,1.59170006,60247.0,60246.0,0.0182221]
[1720001848232,1.59170006,60247.0,60246.0,0.01816145]
[1720001849057,1.65978431,60247.0,60246.0,0.01816145]
[1720001849897,1.48994806,60247.0,60246.0,0.01816145]
[1720001850101,1.11156106,60247.0,60246.0,0.01816145]
[1720001850714,0.3304008,60247.0,60246.0,0.01816145]
[1720001850952,0.15645294,60304.0,60246.0,0.01816145]
[1720001851176,0.1602988,60262.0,60251.0,0.08015582]
[1720001851380,1.0641639,60261.0,60251.0,0.08015582]
[1720001851587,0.7986857,60260.0,60251.0,0.08015582]
[1720001851740,1.3434429,60259.0,60251.0,0.08015582]
[1720001851965,0.08015582,60321.0,60251.0,0.08015582]
[1720001851966,0.0308499,60258.0,60251.0,0.08015582]
[1720001852330,0.23995128,60295.0,60251.0,0.08015582]
[1720001852567,4.06994277,60289.0,60251.0,0.08015582]
[1720001852795,3.95960063,60288.0,60251.0,0.08015582]
[1720001853032,3.95960063,60287.0,60251.0,0.08015582]
[1720001853284,0.11034214,60289.0,60251.0,0.08015582]
[1720001853285,3.95960063,60286.0,60251.0,0.08015582]
[1720001853536,0.11034214,60289.0,60251.0,0.08015582]
[1720001853537,3.95960063,60285.0,60251.0,0.08015582]
[1720001853772,3.26201763,60284.0,60251.0,0.08015582]
[1720001853986,0.23995128,60295.0,60251.0,0.08015582]
[1720001853987,2.77482542,60283.0,60251.0,0.08015582]
[1720001854210,3.80072542,60282.0,60251.0,0.08015582]
[1720001854460,3.28409142,60281.0,60251.0,0.08015582]
[1720001854702,5.19879442,60280.0,60251.0,0.08015582]
[1720001854909,5.19879442,60279.0,60251.0,0.08015582]
[1720001855137,0.1602988,60271.0,60251.0,0.00983173]
[1720001855356,0.1602988,60267.0,60246.0,0.01816145]
[1720001855590,5.19879442,60266.0,60247.0,0.08015582]
[1720001855852,5.35909322,60265.0,60247.0,0.08015582]
[1720001856085,5.13071126,60264.0,60247.0,0.08015582]
[1720001856312,0.08015582,60275.0,60247.0,0.08015582]
[1720001856313,4.98447006,60263.0,60247.0,0.08015582]
[1720001856533,3.56861919,60262.0,60247.0,0.08015582]
[1720001856757,2.80243506,60261.0,60247.0,0.08015582]
[1720001856979,2.80243506,60261.0,60254.0,0.08015582]
[1720001856980,1.501161,60260.0,60254.0,0.08015582]
[1720001857190,0.85128,60259.0,60254.0,0.08015582]
[1720001857403,0.02959036,60258.0,60254.0,0.08015582]
[1720001857617,0.328672,60257.0,60254.0,0.08015582]
[1720001857826,0.03050489,60256.0,60254.0,0.08015582]
[1720001858029,0.03050489,60255.0,60254.0,0.08015582]
[1720001859896,0.1602988,60274.0,60250.0,4e-05]
[1720001859897,0.64123374,60274.0,60250.0,4e-05]
[1720001860101,0.64123374,60274.0,60254.0,0.08015582]
[1720001860102,3.50073767,60273.0,60254.0,0.08015582]
[1720001860314,3.73577147,60272.0,60254.0,0.08015582]
[1720001860524,0.08,60268.0,60262.0,0.06]
[1720001860734,2.90864947,60267.0,60264.0,0.06]
[1720001860980,2.22663967,60266.0,60264.0,0.06]
[1720001861168,2.59848747,60265.0,60264.0,0.06]
[1720001861380,2.12065547,60265.0,60264.0,0.06]
[1720001861589,1.98606547,60265.0,60264.0,0.06]
[1720001861794,1.22431547,60265.0,60264.0,0.06]
[1720001862002,0.60037667,60265.0,60264.0,0.06]
[1720001862831,1.16479067,60265.0,60264.0,0.36]
[1720001863044,0.08,60268.0,60267.0,0.06]
[1720001863259,0.227449,60268.0,60267.0,0.06]
[1720001863473,0.09824574,60268.0,60266.0,0.06]
[1720001863676,0.5,60276.0,60270.0,0.06]
[1720001863882,3.5278374,60275.0,60267.0,0.06]
[1720001864092,3.52238755,60274.0,60267.0,0.06]
[1720001864302,1.83472135,60273.0,60270.0,0.06]
[1720001864513,0.74475326,60272.0,60271.0,0.06]
[1720001864745,0.74475326,60272.0,60257.0,0.03]
[1720001864746,0.5,60269.0,60257.0,0.03]
[1720001864935,4.11260494,60268.0,60258.0,0.03]
[1720001865145,3.48387214,60267.0,60258.0,0.03]
[1720001865355,0.08015582,60271.0,60252.0,0.03]
[1720001865356,0.58,60262.0,60252.0,0.03]
[1720001865557,3.95996594,60261.0,60255.0,0.03]
[1720001865763,3.815343,60260.0,60253.0,0.03]
[1720001865971,3.815343,60260.0,60252.0,0.03]
[1720001865972,0.22442908,60259.0,60252.0,0.03]
[1720001866174,0.06413028,60258.0,60252.0,0.03]
[1720001866386,3.19644208,60257.0,60252.0,0.03]
[1720001866590,2.80586928,60256.0,60250.0,0.01344304]
[1720001866796,0.1602988,60257.0,60250.0,0.01344304]
[1720001866797,3.48649308,60255.0,60250.0,0.01344304]
[1720001867008,2.60151628,60254.0,60250.0,0.01344304]
[1720001867220,2.43483728,60253.0,60250.0,0.01344304]
[1720001867428,1.10307028,60252.0,60250.0,4e-05]
[1720001867634,2.85986328,60251.0,60250.0,4e-05]
[1720001868039,1.79620128,60251.0,60250.0,4e-05]
[1720001868244,1.58658228,60251.0,60250.0,4e-05]
[1720001868510,0.76639728,60251.0,60246.0,0.03154732]
[1720001868743,0.1602988,60252.0,60248.0,0.01338587]
[1720001868744,0.89622628,60250.0,60248.0,0.01338587]
[1720001868989,0.973492,60249.0,60246.0,0.03154732]
[1720001869202,0.1602988,60252.0,60246.0,0.03154732]
[1720001869203,0.06376381,60248.0,60246.0,0.03154732]
[1720001869413,0.06376381,60247.0,60246.0,0.03154732]
[1720001869621,0.06376536,60247.0,60246.0,0.03154732]
[1720001870033,0.06376536,60247.0,60246.0,0.01816145]
[1720001870465,6.0166798,60247.0,60246.0,0.01816145]
[1720001870677,6.13514779,60247.0,60246.0,0.01816145]
[1720001870894,5.70536379,60247.0,60246.0,0.01816145]
[1720001871122,4.46320179,60247.0,60246.0,0.01816145]
[1720001871326,2.91883679,60247.0,60246.0,0.01816145]
[1720001871529,2.75853799,60247.0,60246.0,0.01816145]
[1720001871741,2.91883679,60247.0,60246.0,0.01816145]
[1720001871952,2.8122538,60247.0,60246.0,0.01816145]
[1720001872166,2.8122538,60247.0,60242.0,0.0005]
[1720001872167,0.3,60244.0,60242.0,0.0005]
[1720001872391,5.3491202,60243.0,60242.0,0.0005]
[1720001872619,5.3491202,60243.0,60237.0,0.00660791]
[1720001872620,0.78,60238.0,60237.0,0.00660791]
[1720001872852,5.8956488,60238.0,60237.0,0.00660791]
[1720001873058,6.02866308,60238.0,60237.0,0.00660791]
[1720001873274,6.32866308,60238.0,60237.0,0.00660791]
[1720001873742,6.42921848,60238.0,60237.0,0.00660791]
[1720001874569,6.44680239,60238.0,60237.0,0.00660791]
[1720001874816,6.48845854,60238.0,60237.0,0.00660791]
[1720001875027,6.07422829,60238.0,60237.0,0.00660791]
[1720001875232,4.238706,60238.0,60237.0,0.00660791]
[1720001875441,3.45316436,60238.0,60237.0,0.00660791]
[1720001875849,3.25316436,60238.0,60237.0,0.00660791]
[1720001876303,3.45316436,60238.0,60237.0,0.00660791]
[1720001876708,3.353557,60238.0,60237.0,0.00560791]
[1720001877129,1.747286,60238.0,60237.0,0.00560791]
[1720001877783,1.72960508,60238.0,60237.0,0.00560791]
[1720001877991,1.74979761,60238.0,60237.0,0.00560791]
[1720001878409,1.80783981,60238.0,60237.0,0.00560791]
[1720001878856,1.30798301,60238.0,60237.0,0.00560791]
[1720001879487,0.65833301,60238.0,60237.0,0.00560791]
[1720001879691,1.50951501,60238.0,60237.0,0.00560791]
[1720001880334,1.79353881,60238.0,60237.0,0.00560791]
[1720001880549,1.34975408,60238.0,60237.0,0.00560791]
[1720001880756,0.49662776,60238.0,60237.0,0.00560791]
[1720001880975,0.49662776,60238.0,60237.0,0.08576373]
[1720001880976,0.01942125,60238.0,60237.0,0.08576373]
[1720001881218,0.01942125,60238.0,60237.0,0.00560791]
[1720001881219,0.0197153,60238.0,60237.0,0.00560791]
[1720001881445,9.828e-05,60238.0,60237.0,0.06560791]
[1720001881652,9.828e-05,60238.0,60237.0,0.00560791]
[1720001881887,9.828e-05,60238.0,60237.0,0.06560791]
[1720001882314,3.361e-05,60238.0,60237.0,0.06560791]
[1720001882539,3.361e-05,60238.0,60237.0,0.36560791]
[1720001882745,3.361e-05,60238.0,60237.0,0.04909868]
[1720001882966,3.361e-05,60238.0,60237.0,0.36560791]
[1720001883587,3.361e-05,60238.0,60237.0,0.72590671]
[1720001884060,3.361e-05,60238.0,60237.0,1.02590671]
[1720001884269,3.361e-05,60238.0,60237.0,0.66590671]
[1720001884481,3.361e-05,60238.0,60237.0,1.32590671]
[1720001884694,3.361e-05,60238.0,60237.0,1.46924075]
[1720001889431,3.361e-05,60238.0,60237.0,0.80924075]
[1720001889642,3.361e-05,60238.0,60237.0,1.46924075]
[1720001890071,0.16033241,60238.0,60236.0,0.009196]
[1720001890302,0.32045462,60237.0,60236.0,0.009196]
[1720001890520,0.01869494,60237.0,60236.0,0.009196]
[1720001890727,0.12209994,60237.0,60236.0,0.009196]
[1720001892062,0.12503353,60237.0,60236.0,0.009196]
[1720001892475,0.12503323,60237.0,60236.0,0.009196]
[1720001893129,0.02162823,60237.0,60236.0,0.009196]
[1720001893335,0.123922,60237.0,60236.0,0.009196]
[1720001893540,0.02162823,60237.0,60236.0,0.309196]
[1720001893742,3.361e-05,60238.0,60236.0,0.309196]
[1720001894394,3.361e-05,60238.0,60236.0,0.009196]
[1720001894594,0.02136255,60239.0,60236.0,0.009196]
[1720001894809,0.355343,60238.0,60236.0,0.009196]
[1720001895013,1.050046,60240.0,60236.0,0.009196]
[1720001895222,0.85442099,60239.0,60236.0,0.009196]
[1720001895428,0.2,60244.0,60236.0,0.009196]
[1720001895429,0.545746,60238.0,60236.0,0.009196]
[1720001895632,0.2,60241.0,60236.0,0.009196]
[1720001895848,1.10808994,60240.0,60236.0,0.009196]
[1720001896055,0.88788994,60239.0,60236.0,0.009196]
[1720001896267,0.4,60237.0,60236.0,0.009196]
[1720001896476,4.10280074,60237.0,60236.0,0.009196]
[1720001896688,3.51236174,60237.0,60236.0,0.009196]
[1720001896920,3.91244062,60237.0,60236.0,0.009196]
[1720001897100,3.94691871,60237.0,60236.0,0.009196]
[1720001897513,3.91244062,60237.0,60236.0,0.009196]
[1720001897718,3.50844301,60237.0,60236.0,0.009196]
[1720001897928,0.71139546,60237.0,60236.0,0.009196]
[1720001898132,4.54102446,60237.0,60236.0,0.009196]
[1720001898339,4.33021346,60237.0,60236.0,0.009196]
[1720001898542,4.23254701,60237.0,60236.0,0.009196]
[1720001899175,3.07350401,60237.0,60236.0,0.009196]
[1720001899442,1.59187821,60237.0,60236.0,0.009196]
[1720001899855,0.54537021,60237.0,60236.0,0.009196]
[1720001900064,0.49194,60237.0,60236.0,0.009196]
[1720001900275,1.191831,60239.0,60236.0,0.009196]
[1720001900519,0.847344,60238.0,60236.0,0.009196]
[1720001900752,0.08,60247.0,60236.0,0.009196]
[1720001900753,0.2,60244.0,60236.0,0.009196]
[1720001900969,0.273919,60243.0,60236.0,0.009196]
[1720001901396,1.199276,60245.0,60240.0,0.3]
[1720001901599,1.199276,60245.0,60236.0,0.009196]
[1720001901600,0.431476,60244.0,60242.0,0.3]
[1720001901823,0.5897,60247.0,60243.0,0.3]
[1720001902044,0.278533,60246.0,60241.0,0.3]
[1720001902272,0.278533,60246.0,60236.0,0.009196]
[1720001902273,1.28,60237.0,60236.0,0.009196]
[1720001902487,4.73214791,60237.0,60236.0,0.009196]
[1720001902693,4.393857,60237.0,60236.0,0.009196]
[1720001902906,3.73697,60237.0,60236.0,0.009196]
[1720001903119,2.66235309,60237.0,60236.0,0.009196]
[1720001903550,2.36156409,60237.0,60236.0,0.009196]
[1720001903766,1.112731,60237.0,60236.0,0.009196]
[1720001903985,0.764928,60237.0,60236.0,0.009196]
[1720001904424,0.684928,60237.0,60236.0,0.009196]
[1720001904637,0.50472201,60237.0,60236.0,0.009196]
[1720001905686,0.19939868,60237.0,60236.0,0.009196]
[1720001906104,0.25657589,60237.0,60236.0,0.009196]
[1720001906326,0.69687469,60237.0,60236.0,0.009196]
[1720001906737,0.69639518,60237.0,60236.0,0.009196]
[1720001907213,0.43597734,60237.0,60236.0,0.009196]
[1720001907424,0.45442995,60237.0,60236.0,0.009196]
[1720001907630,0.61472875,60237.0,60236.0,0.009196]
[1720001907838,0.92920684,60237.0,60236.0,0.009196]
[1720001908472,0.89472875,60237.0,60236.0,0.009196]
[1720001908674,0.92920684,60237.0,60236.0,0.009196]
[1720001909294,0.89472875,60237.0,60236.0,0.009196]
[1720001909727,0.8716521,60237.0,60236.0,0.009196]
[1720001909936,0.94416469,60237.0,60236.0,0.009196]
[1720001910347,1.04338861,60237.0,60236.0,0.009196]
[1720001911174,0.65756934,60237.0,60236.0,0.009196]
[1720001911799,5.28244434,60237.0,60236.0,0.009196]
[1720001913690,3.84300054,60237.0,60236.0,0.009196]
[1720001913896,2.97295354,60237.0,60236.0,0.009196]
[1720001914300,2.99098596,60237.0,60236.0,0.009196]
[1720001914500,3.22370403,60237.0,60236.0,0.009196]
[1720001914725,3.16743076,60237.0,60236.0,0.009196]
[1720001915221,3.13295267,60237.0,60236.0,0.009196]
[1720001915719,3.16743076,60237.0,60236.0,0.009196]
[1720001919531,3.24743076,60237.0,60236.0,0.009196]
[1720001922906,3.25515277,60237.0,60236.0,0.009196]
[1720001923118,3.35289061,60237.0,60236.0,0.009196]
[1720001924184,3.24743076,60237.0,60236.0,0.009196]
[1720001924409,3.42120715,60237.0,60236.0,0.009196]
[1720001924917,3.42139507,60237.0,60236.0,0.009196]
[1720001925635,3.24733076,60237.0,60236.0,0.009196]
[1720001925878,3.42359829,60237.0,60236.0,0.009196]
[1720001926070,3.3891202,60237.0,60236.0,0.009196]
[1720001926342,3.42359829,60237.0,60236.0,0.009196]
[1720001926580,3.0530554,60237.0,60234.0,0.01067653]
[1720001926813,0.19960033,60235.0,60234.0,0.01067653]
[1720001927041,3.08213361,60235.0,60234.0,0.01067653]
[1720001928242,2.67341661,60235.0,60234.0,0.01067653]
[1720001928468,2.45039686,60235.0,60234.0,0.01067653]
[1720001928686,2.45413338,60235.0,60234.0,0.01067653]
[1720001931660,2.27412933,60235.0,60234.0,0.01067653]
[1720001931957,2.45044528,60235.0,60234.0,0.01067653]
[1720001932174,2.56952989,60235.0,60234.0,0.01067653]
[1720001932400,2.64522754,60235.0,60234.0,0.01067653]
[1720001934117,2.61074945,60235.0,60234.0,0.01067653]
[1720001934737,2.49038575,60235.0,60234.0,0.01067653]
[1720001934946,2.64246856,60235.0,60234.0,0.01067653]
[1720001935180,2.64216885,60235.0,60234.0,0.01067653]
[1720001935580,2.68739262,60235.0,60234.0,0.01067653]
[1720001935784,2.76739262,60235.0,60234.0,0.01067653]
[1720001936552,2.72216885,60235.0,60234.0,0.01067653]
[1720001937784,2.71351394,60235.0,60234.0,0.01067653]
[1720001937932,2.72026585,60235.0,60234.0,0.01067653]
[1720001939089,2.72026585,60235.0,60228.0,0.49420209]
[1720001939090,0.93348001,60229.0,60228.0,0.49420209]
[1720001939253,1.16642319,60229.0,60228.0,0.49420209]
[1720001939467,6.2767177,60229.0,60228.0,0.49420209]
[1720001940074,6.5767177,60229.0,60228.0,0.49420209]
[1720001940233,5.7172177,60229.0,60228.0,0.49420209]
[1720001940433,5.78653136,60229.0,60228.0,0.49420209]
[1720001941065,5.72623685,60229.0,60228.0,0.49420209]
[1720001941667,4.40156776,60229.0,60228.0,0.49420209]
[1720001941867,4.28205276,60229.0,60228.0,0.49420209]
[1720001942214,4.28205276,60229.0,60228.0,0.49512609]
[1720001942215,4.31653085,60229.0,60228.0,0.49512609]
[1720001942632,4.28205276,60229.0,60228.0,0.49512609]
[1720001943064,4.30921339,60229.0,60228.0,0.49512609]
[1720001943465,4.14457281,60229.0,60228.0,0.49512609]
[1720001943686,4.30921716,60229.0,60228.0,0.49512609]
[1720001944133,2.50072207,60229.0,60228.0,0.49512609]
[1720001944363,1.67880007,60229.0,60228.0,0.49512609]
[1720001945235,1.71327816,60229.0,60228.0,0.49512609]
[1720001945683,1.67880007,60229.0,60228.0,0.49512609]
[1720001945905,1.54863381,60229.0,60228.0,0.49512609]
[1720001946130,1.70976915,60229.0,60228.0,0.49512609]
[1720001946339,1.67529106,60229.0,60228.0,0.49512609]
[1720001946546,1.70976915,60229.0,60228.0,0.49512609]
[1720001946960,1.60978189,60229.0,60228.0,0.49512609]
[1720001949721,1.44948309,60229.0,60228.0,0.49512609]
[1720001951979,1.60333013,60229.0,60228.0,0.49512609]
[1720001952108,1.4379671,60229.0,60228.0,0.49512609]
[1720001952311,1.60333013,60229.0,60228.0,0.49512609]
[1720001952745,1.4379671,60229.0,60228.0,0.49512609]
[1720001953601,1.5982659,60229.0,60228.0,0.49512609]
[1720001955050,1.59448751,60229.0,60228.0,0.49512609]
[1720001955510,1.59450705,60229.0,60228.0,0.49512609]
[1720001958829,0.50963931,60229.0,60228.0,0.49512609]
[1720001959007,5.45965231,60229.0,60228.0,0.49512609]
[1720001959241,5.75435855,60229.0,60228.0,0.49512609]
[1720001959518,5.45965231,60229.0,60228.0,0.49512609]
[1720001960136,6.15965231,60229.0,60228.0,0.49508163]
[1720001961022,6.14813726,60229.0,60228.0,0.49508163]
[1720001961224,6.15832218,60229.0,60228.0,0.49508163]
[1720001961836,5.45832218,60229.0,60228.0,0.49508163]
[1720001962038,3.69393518,60229.0,60228.0,0.49508163]
[1720001965118,3.9936353,60229.0,60228.0,0.49508163]
[1720001965371,3.6936353,60229.0,60228.0,0.49508163]
[1720001966977,3.98779522,60229.0,60228.0,0.49508163]
[1720001967224,3.64809402,60229.0,60228.0,0.49508163]
[1720001969160,0.63346718,60229.0,60228.0,0.49508163]
[1720001969364,5.41248118,60229.0,60228.0,0.49508163]
[1720001969763,6.11248118,60229.0,60228.0,0.49508163]
[1720001969992,5.99416381,60229.0,60228.0,0.49508163]
[1720001970190,6.38417774,60229.0,60228.0,0.49508163]
[1720001970423,6.46417774,60229.0,60228.0,0.49508163]
[1720001970624,6.87917774,60229.0,60228.0,0.49508163]
[1720001971260,6.17917774,60229.0,60228.0,0.49508163]
[1720001971435,6.04674774,60229.0,60228.0,0.49508163]
[1720001971641,5.74674774,60229.0,60228.0,0.49508163]
[1720001971850,5.20903874,60229.0,60228.0,0.49508163]
[1720001972438,5.34547009,60229.0,60228.0,0.49508163]
[1720001972839,5.21211735,60229.0,60228.0,0.49508163]
[1720001973441,5.13688735,60229.0,60228.0,0.49508163]
[1720001974037,5.27455911,60229.0,60228.0,0.49508163]
[1720001974460,4.85955911,60229.0,60228.0,0.49508163]
[1720001975509,4.88206128,60229.0,60228.0,0.49508163]
[1720001976740,4.96839118,60229.0,60228.0,0.49508163]
[1720001977262,5.10536571,60229.0,60228.0,0.49508163]
[1720001977420,5.15600595,60229.0,60228.0,0.49508163]
[1720001977739,5.18684595,60229.0,60228.0,0.49508163]
[1720001978183,5.15684595,60229.0,60228.0,0.49508163]
[1720001979545,4.88290128,60229.0,60228.0,0.49508163]
[1720001979743,5.29790128,60229.0,60228.0,0.49508163]
[1720001980246,4.88290128,60229.0,60228.0,0.49508163]
[1720001980469,4.88290128,60229.0,60228.0,0.4950371]
[1720001980689,5.21490128,60229.0,60228.0,0.4950371]
[1720001980893,4.88290128,60229.0,60228.0,0.4950371]
[1720001981065,4.58290128,60229.0,60228.0,0.4450371]
[1720001981392,4.88290128,60229.0,60228.0,0.4450371]
[1720001984088,4.58290128,60229.0,60228.0,0.4450371]
[1720001984494,4.88290128,60229.0,60228.0,0.4450371]
[1720001985626,4.99790128,60229.0,60228.0,0.4450371]
[1720001985828,4.58290128,60229.0,60228.0,0.4450371]
[1720001986585,4.45841628,60229.0,60228.0,0.4450371]
[1720001986803,4.04341628,60229.0,60228.0,0.4450371]
[1720001987195,5.32827028,60229.0,60228.0,0.4450371]
[1720001991396,5.05463089,60229.0,60228.0,0.4450371]
[1720001991845,5.46963089,60229.0,60228.0,0.4450371]
[1720001993266,5.4351528,60229.0,60228.0,0.4450371]
[1720001993489,5.05463089,60229.0,60228.0,0.4450371]
[1720001993912,3.8928648,60229.0,60228.0,0.4450371]
[1720001994173,3.92734289,60229.0,60228.0,0.4450371]
[1720001994434,4.07020564,60229.0,60228.0,0.4450371]
[1720001994894,4.07020564,60229.0,60228.0,0.44499049]
[1720001995377,4.07131021,60229.0,60228.0,0.44499049]
[1720001995855,4.07124231,60229.0,60228.0,0.44499049]
[1720001997794,4.21094212,60229.0,60228.0,0.44499049]
[1720001998523,4.31315219,60229.0,60228.0,0.44499049]
[1720001998757,4.54022265,60229.0,60228.0,0.44499049]
[1720002000525,4.51022265,60229.0,60228.0,0.44499049]
[1720002000748,4.54022265,60229.0,60228.0,0.44499049]
[1720002000982,4.53679305,60229.0,60228.0,0.44499049]
[1720002001215,4.47231496,60229.0,60228.0,0.44499049]
[1720002001437,4.53679305,60229.0,60228.0,0.44499049]
[1720002001972,4.91629305,60229.0,60228.0,0.44499049]
[1720002002686,5.61629305,60229.0,60228.0,0.44499049]